bitfinex-derivatives/quotes_BTCF0:USTF0_20230106
["timestamp","ask_amount","ask_price","bid_price","bid_amount"]
[1673010405414,0.482611,16730.0,16729.0,0.8072]
[1673010414232,0.482611,16730.0,16729.0,0.89666882]
[1673010418134,0.482611,16730.0,16729.0,0.8072]
[1673010418344,0.181911,16730.0,16729.0,0.89681702]
[1673010419489,0.181911,16730.0,16729.0,1.19751702]
[1673010419695,0.181911,16730.0,16729.0,1.1079]
[1673010419907,0.041911,16730.0,16729.0,1.24211818]
[1673010420114,0.03354256,16731.0,16729.0,1.24211818]
[1673010420323,0.03354256,16731.0,16730.0,0.73141818]
[1673010420850,0.03354256,16731.0,16730.0,4.70141818]
[1673010422437,0.03354256,16731.0,16730.0,4.70941818]
[1673010424011,0.03354256,16731.0,16730.0,4.66477673]
[1673010426009,0.03354256,16731.0,16730.0,4.70941818]
[1673010429678,0.03354256,16731.0,16730.0,0.93941818]
[1673010430102,0.03354256,16731.0,16730.0,0.89471354]
[1673010430309,0.03354256,16731.0,16730.0,0.89470357]
[1673010431148,0.03354256,16731.0,16730.0,0.8052]
[1673010432404,0.03354256,16731.0,16730.0,0.89470357]
[1673010435978,0.03354256,16731.0,16730.0,0.8052]
[1673010436414,0.03354256,16731.0,16730.0,0.89470357]
[1673010436611,0.03354256,16731.0,16730.0,0.8052]
[1673010437243,0.03354256,16731.0,16730.0,0.89471573]
[1673010437682,0.23354256,16731.0,16730.0,0.89471573]
[1673010440308,0.23354256,16731.0,16730.0,0.09751573]
[1673010440514,0.23354256,16731.0,16730.0,0.008]
[1673010441041,0.23354256,16731.0,16730.0,0.29751573]
[1673010446507,0.23354256,16731.0,16730.0,0.208]
[1673010449563,0.23354256,16731.0,16730.0,0.008]
[1673010450194,0.23354256,16731.0,16730.0,0.208]
[1673010459127,0.03354256,16731.0,16730.0,0.208]
[1673010461129,0.23354256,16731.0,16730.0,0.208]
[1673010461868,0.03354256,16731.0,16730.0,0.208]
[1673010462606,0.23354256,16731.0,16730.0,0.208]
[1673010463122,0.03354256,16731.0,16730.0,0.208]
[1673010463967,0.23354256,16731.0,16730.0,0.208]
[1673010469228,0.53424256,16731.0,16730.0,0.008]
[1673010469861,0.53424256,16731.0,16730.0,0.2078902]
[1673010474584,0.53424256,16731.0,16730.0,0.0078902]
[1673010475006,0.53424256,16731.0,16730.0,0.2078902]
[1673010475217,0.53424256,16731.0,16730.0,0.0078902]
[1673010482368,1.43301514,16731.0,16725.0,0.38991573]
[1673010482578,0.03354256,16726.0,16725.0,0.38991573]
[1673010482995,0.03354256,16726.0,16725.0,1.18711573]
[1673010483421,0.03354256,16726.0,16725.0,0.7972]
[1673010483627,0.03554256,16726.0,16725.0,0.9362]
[1673010484044,0.03554256,16726.0,16725.0,1.02571573]
[1673010484256,0.03554256,16726.0,16725.0,0.9362]
[1673010484688,0.03554256,16726.0,16725.0,1.02571573]
[1673010485000,0.03554256,16726.0,16725.0,0.9362]
[1673010485945,0.03554256,16726.0,16725.0,1.02571573]
[1673010487301,0.03554256,16726.0,16725.0,0.9362]
[1673010487519,0.03554256,16726.0,16725.0,0.139]
[1673010487735,0.33624256,16726.0,16725.0,0.139]
[1673010488151,0.33624256,16726.0,16720.0,0.08951573]
[1673010488369,0.6014,16721.0,16720.0,0.13421818]
[1673010488584,0.6014,16721.0,16718.0,0.22379808]
[1673010488885,0.3007,16721.0,16718.0,0.0895799]
[1673010489098,0.3007,16719.0,16718.0,0.13421818]
[1673010489414,0.3007,16719.0,16717.0,0.68686434]
[1673010490030,0.3007,16719.0,16718.0,0.212]
[1673010490253,0.3057,16721.0,16718.0,0.8092]
[1673010490454,0.014,16719.0,16718.0,1.18729944]
[1673010490659,0.014,16719.0,16718.0,1.49857562]
[1673010490870,0.015,16719.0,16718.0,1.51957562]
[1673010491090,0.015,16719.0,16718.0,0.90751075]
[1673010491298,0.015,16719.0,16718.0,0.2]
[1673010491509,0.014,16719.0,16718.0,0.221]
[1673010492768,0.3147,16719.0,16718.0,0.221]
[1673010492971,0.3137,16719.0,16718.0,0.221]
[1673010493398,0.3137,16719.0,16718.0,0.2]
[1673010493399,0.3007,16719.0,16718.0,0.2]
[1673010493616,0.3147,16719.0,16718.0,0.221]
[1673010494458,0.3007,16719.0,16718.0,0.2]
[1673010494663,0.34924256,16719.0,16718.0,0.221]
[1673010499499,0.3157,16719.0,16718.0,0.221]
[1673010510223,0.3057,16719.0,16718.0,0.221]
[1673010510746,0.33924256,16719.0,16718.0,0.221]
[1673010511064,0.3057,16719.0,16718.0,0.221]
[1673010512108,0.015,16719.0,16718.0,0.221]
[1673010514420,0.04854256,16719.0,16718.0,0.221]
[1673010515478,0.34924256,16719.0,16718.0,0.221]
[1673010515690,0.3157,16719.0,16718.0,0.221]
[1673010516944,0.3157,16719.0,16718.0,0.31031075]
[1673010518628,0.015,16719.0,16718.0,0.31031075]
[1673010518834,0.015,16719.0,16718.0,0.95241818]
[1673010519044,0.015,16719.0,16718.0,1.08465744]
[1673010519470,0.015,16719.0,16718.0,1.21870048]
[1673010519680,0.015,16719.0,16718.0,1.08465744]
[1673010520742,0.015,16719.0,16718.0,0.95224446]
[1673010520942,0.04854256,16719.0,16718.0,0.90756626]
[1673010522311,0.04854256,16719.0,16718.0,0.95224446]
[1673010522525,0.04854256,16719.0,16718.0,0.90757931]
[1673010523152,0.04854256,16719.0,16718.0,0.95224446]
[1673010523364,0.015,16719.0,16718.0,0.95224446]
[1673010523580,0.015,16719.0,16718.0,0.8182]
[1673010524529,0.015,16719.0,16718.0,1.49261496]
[1673010525256,0.015,16719.0,16718.0,1.31324514]
[1673010525467,0.015,16719.0,16718.0,1.53733363]
[1673010526301,0.015,16719.0,16718.0,1.31324514]
[1673010526507,0.015,16719.0,16718.0,1.53733363]
[1673010527043,0.015,16719.0,16718.0,1.53728603]
[1673010528612,0.04854256,16719.0,16718.0,1.53728603]
[1673010529032,0.04854256,16719.0,16718.0,1.31324514]
[1673010529247,0.04854256,16719.0,16718.0,1.53728603]
[1673010529875,0.04854256,16719.0,16718.0,1.31324514]
[1673010530086,0.04854256,16719.0,16718.0,1.53728603]
[1673010532410,0.015,16719.0,16718.0,1.53728603]
[1673010534925,0.015,16719.0,16718.0,1.31324514]
[1673010535132,0.015,16719.0,16718.0,1.53728603]
[1673010536186,0.04854256,16719.0,16718.0,1.31324514]
[1673010536401,0.04854256,16719.0,16718.0,1.49242975]
[1673010539029,0.04854256,16719.0,16718.0,1.79312975]
[1673010539350,0.04854256,16719.0,16718.0,1.49242975]
[1673010539752,0.04854256,16719.0,16718.0,0.9526118]
[1673010542284,0.04854256,16719.0,16718.0,0.8182]
[1673010542597,0.04854256,16719.0,16718.0,0.99738461]
[1673010543327,0.04854256,16719.0,16718.0,0.8182]
[1673010544799,0.04854256,16719.0,16718.0,0.99738461]
[1673010545009,0.04854256,16719.0,16718.0,1.49243169]
[1673010545960,0.04854256,16719.0,16718.0,1.83798797]
[1673010546899,0.04854256,16719.0,16718.0,1.61394708]
[1673010547110,0.04854256,16719.0,16718.0,1.83798797]
[1673010556056,0.04854256,16719.0,16718.0,1.83783848]
[1673010556472,0.04854256,16719.0,16718.0,1.61379759]
[1673010558891,0.04854256,16719.0,16718.0,1.83806568]
[1673010560989,0.04854256,16719.0,16718.0,1.61379759]
[1673010566874,0.2,16723.0,16720.0,0.5972]
[1673010567083,0.2,16723.0,16722.0,0.23455095]
[1673010567924,0.2,16724.0,16722.0,0.23455095]
[1673010568131,0.2,16724.0,16723.0,0.13455095]
[1673010568347,0.2,16724.0,16723.0,0.08968616]
[1673010568874,0.336,16724.0,16723.0,0.08968616]
[1673010569298,0.336,16724.0,16723.0,0.09368616]
[1673010570141,0.211,16724.0,16723.0,0.09968616]
[1673010570874,0.011,16724.0,16723.0,0.09968616]
[1673010571401,0.025,16724.0,16723.0,0.09768616]
[1673010571718,0.225,16724.0,16723.0,0.23223711]
[1673010571919,0.025,16724.0,16723.0,0.09768616]
[1673010572131,0.225,16724.0,16723.0,0.09768616]
[1673010576551,0.5257,16724.0,16723.0,0.09768616]
[1673010576865,0.3257,16724.0,16723.0,0.09768616]
[1673010578441,0.025,16724.0,16723.0,0.14255095]
[1673010582211,0.3007,16726.0,16724.0,0.7972]
[1673010582421,0.5007,16727.0,16725.0,0.08956291]
[1673010582637,0.5007,16727.0,16726.0,0.2]
[1673010583268,0.3007,16727.0,16726.0,0.2]
[1673010584111,0.3017,16727.0,16726.0,0.2]
[1673010584526,0.3007,16727.0,16726.0,0.2]
[1673010584847,0.3017,16727.0,16726.0,0.211]
[1673010585582,0.3017,16727.0,16726.0,0.209]
[1673010586733,0.3017,16727.0,16726.0,0.206]
[1673010591258,0.3017,16727.0,16726.0,0.29556291]
[1673010592518,0.001,16727.0,16726.0,0.29556291]
[1673010594727,0.001,16727.0,16726.0,0.89276291]
[1673010598512,0.001,16727.0,16726.0,0.8032]
[1673010606075,0.001,16727.0,16726.0,0.89276291]
[1673010606497,0.3017,16727.0,16726.0,0.89276291]
[1673010612485,0.3017,16727.0,16726.0,0.006]
[1673010614067,0.3017,16727.0,16726.0,0.09556291]
[1673010615648,0.3017,16727.0,16726.0,0.006]
[1673010619641,0.5017,16727.0,16726.0,0.006]
[1673010631000,0.201,16727.0,16726.0,0.006]
[1673010631214,0.8024,16727.0,16726.0,0.006]
[1673010632895,0.8024,16727.0,16726.0,0.00590985]
[1673010646766,0.201,16727.0,16726.0,0.00590985]
[1673010646976,0.8024,16727.0,16726.0,0.00590985]
[1673010685545,0.8024,16727.0,16726.0,0.00583386]
[1673010693753,0.6024,16727.0,16726.0,0.00583386]
[1673010694695,0.6034,16727.0,16726.0,0.006]
[1673010702995,0.6014,16727.0,16725.0,0.2]
[1673010703206,0.2,16726.0,16725.0,0.2]
[1673010704149,0.6014,16727.0,16725.0,0.297]
[1673010704569,0.2,16726.0,16725.0,0.297]
[1673010706147,0.2,16726.0,16725.0,0.226]
[1673010706567,0.2,16726.0,16725.0,0.2]
[1673010706786,0.2,16726.0,16725.0,0.297]
[1673010710991,0.2,16726.0,16725.0,0.38656291]
[1673010711298,0.2,16726.0,16725.0,0.297]
[1673010711507,0.6014,16727.0,16725.0,0.38656291]
[1673010712767,0.6014,16727.0,16725.0,0.31556291]
[1673010717083,0.3007,16726.0,16725.0,0.31556291]
[1673010718454,0.3007,16726.0,16725.0,0.226]
[1673010719400,0.3007,16726.0,16725.0,0.2]
[1673010719723,0.3007,16726.0,16725.0,0.297]
[1673010720455,0.3007,16726.0,16725.0,0.2]
[1673010720657,0.3007,16726.0,16725.0,0.341]
[1673010721090,0.3007,16726.0,16725.0,0.297]
[1673010722241,0.3007,16726.0,16725.0,0.2]
[1673010722459,0.3007,16726.0,16725.0,0.341]
[1673010722655,0.3007,16726.0,16725.0,0.2]
[1673010722864,0.3007,16726.0,16725.0,0.297]
[1673010727600,0.3007,16726.0,16725.0,0.097]
[1673010737406,0.3007,16726.0,16725.0,0.09679549]
[1673010750200,1.19537599,16726.0,16725.0,0.09679549]
[1673010766925,1.49537599,16726.0,16725.0,0.09679549]
[1673010771548,1.19537599,16726.0,16725.0,0.09679549]
[1673010783828,0.89467599,16726.0,16725.0,0.09679549]
[1673010784043,1.49607599,16726.0,16725.0,0.09679549]
[1673010787407,0.2,16725.0,16720.0,1.85264483]
[1673010787615,0.6014,16721.0,16720.0,1.85264483]
[1673010787826,0.6014,16721.0,16720.0,1.23734483]
[1673010788876,0.6104,16721.0,16720.0,1.32634483]
[1673010789517,0.6064,16721.0,16720.0,1.28834483]
[1673010795405,0.7044,16721.0,16720.0,1.24434483]
[1673010795824,0.6014,16721.0,16720.0,1.23734483]
[1673010796029,0.7044,16721.0,16720.0,1.24434483]
[1673010802352,0.7044,16721.0,16720.0,1.54434483]
[1673010805200,0.4037,16721.0,16720.0,1.54434483]
[1673010806555,0.103,16721.0,16720.0,1.54434483]
[1673010806767,0.0876,16721.0,16720.0,2.14154483]
[1673010808665,0.0876,16721.0,16720.0,2.23110774]
[1673010809608,0.0876,16721.0,16720.0,2.14154483]
[1673010811714,1.0818,16736.0,16722.0,0.3007]
[1673010811924,0.3007,16734.0,16732.0,0.5972]
[1673010812130,0.26734658,16736.0,16732.0,0.5972]
[1673010812335,0.23784691,16736.0,16732.0,0.5972]
[1673010812561,0.23784691,16736.0,16731.0,0.98743828]
[1673010812562,0.2,16735.0,16731.0,0.98743828]
[1673010812767,0.2,16735.0,16732.0,0.2]
[1673010812978,0.2,16735.0,16732.0,0.5007]
[1673010813507,0.2,16735.0,16733.0,0.2]
[1673010814134,0.2,16737.0,16733.0,0.2]
[1673010814339,0.2,16737.0,16735.0,0.2]
[1673010814558,0.2,16737.0,16736.0,0.3007]
[1673010814770,0.2,16737.0,16735.0,0.2]
[1673010814972,0.2,16737.0,16736.0,0.3007]
[1673010817388,0.2,16737.0,16736.0,0.3117]
[1673010817813,0.2,16738.0,16736.0,0.3117]
[1673010818652,0.2,16739.0,16737.0,3.77]
[1673010819079,0.2,16739.0,16738.0,0.2]
[1673010820335,0.2,16739.0,16738.0,0.211]
[1673010820552,0.2,16739.0,16738.0,0.011]
[1673010821075,0.5007,16739.0,16738.0,0.011]
[1673010821487,1.39668592,16739.0,16738.0,0.011]
[1673010836330,1.39668592,16739.0,16735.0,0.2]
[1673010836533,0.3007,16737.0,16735.0,0.2]
[1673010836744,0.2,16736.0,16735.0,0.2]
[1673010838313,0.2,16736.0,16735.0,0.21]
[1673010838634,0.2,16736.0,16735.0,0.2]
[1673010838835,0.2,16736.0,16735.0,0.209]
[1673010840209,0.3007,16737.0,16735.0,0.209]
[1673010841475,0.5007,16739.0,16736.0,0.3007]
[1673010841788,0.5007,16739.0,16737.0,0.2]
[1673010842208,0.89424918,16738.0,16737.0,0.2]
[1673010843041,0.89424918,16738.0,16737.0,0.209]
[1673010843252,0.89424918,16738.0,16737.0,0.009]
[1673010844308,0.89424918,16738.0,16737.0,0.005]
[1673010846207,0.89424918,16738.0,16735.0,0.2]
[1673010846418,0.89424918,16738.0,16737.0,0.005]
[1673010847570,0.2,16737.0,16735.0,0.2]
[1673010848522,0.2,16737.0,16735.0,0.341]
[1673010848935,0.2,16737.0,16735.0,0.43053828]
[1673010850309,0.2,16737.0,16735.0,0.38953828]
[1673010850725,0.2,16737.0,16735.0,0.28953828]
[1673010850936,0.2,16737.0,16735.0,0.43053828]
[1673010851140,0.2,16737.0,16736.0,0.17940127]
[1673010851351,0.2,16737.0,16736.0,0.67401063]
[1673010851561,0.2,16737.0,16736.0,0.17940127]
[1673010851887,0.5007,16739.0,16736.0,1.09826222]
[1673010852097,0.5007,16739.0,16738.0,0.08952151]
[1673010852301,0.5007,16739.0,16738.0,0.22380378]
[1673010852510,1.39848696,16739.0,16738.0,0.22380378]
[1673010853768,1.39848696,16739.0,16738.0,0.08952151]
[1673010854087,1.39848696,16739.0,16737.0,0.22380378]
[1673010854613,1.39848696,16739.0,16738.0,0.005]
[1673010854925,1.39848696,16739.0,16737.0,0.08952151]
[1673010855138,1.39848696,16739.0,16737.0,0.09852151]
[1673010855559,1.39848696,16739.0,16738.0,0.005]
[1673010856390,0.5007,16739.0,16738.0,0.205]
[1673010856821,0.5007,16739.0,16738.0,0.2]
[1673010857235,0.5007,16739.0,16738.0,0.205]
[1673010858295,0.5007,16739.0,16738.0,0.005]
[1673010861032,0.8014,16739.0,16738.0,0.005]
[1673010862178,0.8014,16739.0,16738.0,0.205]
[1673010863020,0.8014,16739.0,16738.0,0.2048959]
[1673010863651,0.5007,16739.0,16738.0,0.2048959]
[1673010866806,0.3007,16739.0,16738.0,0.2048959]
[1673010867225,0.3007,16741.0,16738.0,0.29441741]
[1673010867440,0.3007,16741.0,16738.0,0.59511741]
[1673010868076,0.3007,16741.0,16738.0,0.5055959]
[1673010868391,0.3007,16741.0,16738.0,0.5007]
[1673010868602,0.3007,16741.0,16738.0,0.5107]
[1673010868800,0.2,16740.0,16738.0,0.5107]
[1673010870162,0.2,16740.0,16738.0,0.5097]
[1673010871110,0.2,16740.0,16738.0,0.209]
[1673010873324,0.3007,16741.0,16738.0,0.209]
[1673010874375,0.3007,16741.0,16738.0,0.21]
[1673010875212,0.2,16740.0,16738.0,0.21]
[1673010877095,0.2,16740.0,16738.0,0.209]
[1673010878781,0.3007,16741.0,16738.0,0.209]
[1673010879105,0.2,16740.0,16738.0,0.209]
[1673010879837,0.2,16740.0,16738.0,0.2082]
[1673010880990,0.5007,16740.0,16738.0,0.2082]
[1673010881937,0.2,16740.0,16738.0,0.2082]
[1673010887194,0.5007,16740.0,16738.0,0.2082]
[1673010890873,0.5007,16740.0,16738.0,0.009]
[1673010891187,0.8014,16740.0,16738.0,0.009]
[1673010897505,0.6014,16740.0,16738.0,0.009]
[1673010897704,0.2,16741.0,16738.0,0.009]
[1673010899286,0.2,16741.0,16737.0,0.59022151]
[1673010899501,0.2,16741.0,16738.0,0.01]
[1673010900433,0.3007,16740.0,16738.0,0.01]
[1673010901273,0.3007,16740.0,16737.0,1.18742151]
[1673010901492,0.3007,16740.0,16738.0,0.009]
[1673010903064,0.3007,16742.0,16738.0,0.009]
[1673010903279,0.2,16741.0,16738.0,0.009]
[1673010904324,0.2,16741.0,16737.0,1.32170378]
[1673010904543,0.2,16741.0,16738.0,0.01]
[1673010907577,0.3007,16740.0,16738.0,0.01]
[1673010907999,0.2,16739.0,16738.0,0.01]
[1673010908533,0.2,16739.0,16738.0,0.009]
[1673010909791,0.2,16739.0,16738.0,0.005]
[1673010910843,0.3007,16740.0,16738.0,0.009]
[1673010911051,0.2,16739.0,16738.0,0.009]
[1673010912423,0.2,16739.0,16737.0,0.2]
[1673010912625,0.2,16739.0,16738.0,0.01]
[1673010912841,0.2,16739.0,16737.0,0.2]
[1673010913156,0.3007,16740.0,16738.0,0.009]
[1673010913370,0.2,16741.0,16738.0,0.009]
[1673010913989,0.2,16741.0,16737.0,1.18742151]
[1673010913990,0.2,16741.0,16737.0,1.19642151]
[1673010914412,0.2,16741.0,16737.0,1.18742151]
[1673010914618,0.2,16741.0,16738.0,0.01]
[1673010915773,0.2,16741.0,16737.0,1.18742151]
[1673010915774,0.2,16741.0,16737.0,1.19742151]
[1673010915983,0.2,16741.0,16737.0,1.33170378]
[1673010916189,0.2,16741.0,16737.0,1.18742151]
[1673010916410,0.2,16741.0,16738.0,0.01]
[1673010917144,0.2,16741.0,16737.0,1.19742151]
[1673010917358,0.2,16741.0,16737.0,1.33170378]
[1673010918721,0.3007,16742.0,16739.0,0.3007]
[1673010919139,0.3007,16742.0,16740.0,0.2]
[1673010920407,0.3007,16742.0,16740.0,0.211]
[1673010921347,0.2,16741.0,16740.0,0.211]
[1673010922296,0.3007,16742.0,16740.0,0.211]
[1673010922507,0.3007,16742.0,16740.0,0.21]
[1673010922718,0.2,16741.0,16740.0,0.21]
[1673010923551,0.2,16741.0,16740.0,0.211]
[1673010923976,0.2,16741.0,16740.0,0.21]
[1673010927547,0.2,16741.0,16740.0,0.20979193]
[1673010930613,0.19985375,16741.0,16740.0,0.20979193]
[1673010936280,0.3007,16742.0,16740.0,0.20979193]
[1673010937333,0.2,16741.0,16740.0,0.20979193]
[1673010937543,0.2,16741.0,16740.0,0.21079193]
[1673010938379,0.2,16741.0,16740.0,0.19979193]
[1673010938601,0.2,16741.0,16740.0,0.20979193]
[1673010940598,0.2,16741.0,16740.0,0.01]
[1673010945009,0.2,16741.0,16740.0,0.21]
[1673010948049,0.2,16743.0,16740.0,0.21]
[1673010948473,0.5007,16743.0,16740.0,0.21]
[1673010949955,0.5007,16745.0,16741.0,0.3007]
[1673010950259,0.2,16744.0,16741.0,0.3007]
[1673010950464,0.2,16744.0,16742.0,0.2]
[1673010951728,0.2,16744.0,16742.0,0.211]
[1673010955304,0.2,16744.0,16743.0,3.77]
[1673010955515,0.2,16744.0,16742.0,0.011]
[1673010955832,0.2,16744.0,16742.0,0.211]
[1673010956034,0.2,16744.0,16743.0,3.77]
[1673010956357,0.5007,16745.0,16743.0,3.781]
[1673010956557,0.5007,16745.0,16744.0,0.2]
[1673010959184,0.5007,16745.0,16744.0,0.211]
[1673010962231,0.3007,16745.0,16744.0,0.211]
[1673010963081,0.3007,16747.0,16744.0,0.209]
[1673010963400,1.939634,16758.0,16744.0,0.209]
[1673010963401,0.5972,16752.0,16745.0,1.2021]
[1673010963609,0.3007,16753.0,16750.0,0.5972]
[1673010963828,0.2,16752.0,16750.0,3.77]
[1673010964130,0.3007,16751.0,16748.0,0.3007]
[1673010964349,0.3007,16751.0,16746.0,0.3007]
[1673010964558,0.2,16750.0,16747.0,0.1]
[1673010964864,0.2,16750.0,16748.0,3.77]
[1673010965074,0.3007,16751.0,16748.0,4.0707]
[1673010965286,0.3007,16751.0,16749.0,0.2]
[1673010965912,0.2,16750.0,16749.0,0.2]
[1673010966240,0.2,16750.0,16749.0,0.211]
[1673010967170,0.2,16750.0,16749.0,0.2]
[1673010967392,0.2,16750.0,16749.0,0.211]
[1673010973381,0.2,16750.0,16749.0,0.011]
[1673010973584,0.2,16750.0,16749.0,0.211]
[1673010974428,0.2,16750.0,16749.0,2.4505]
[1673010975062,0.3007,16751.0,16749.0,2.4505]
[1673010975266,0.3007,16751.0,16750.0,1.3442]
[1673010976539,0.3007,16751.0,16750.0,1.3552]
[1673010980526,0.3007,16751.0,16750.0,0.4583]
[1673010982630,0.3007,16751.0,16750.0,0.45806887]
[1673010986518,0.2,16752.0,16750.0,1.35446887]
[1673010986729,0.2,16752.0,16751.0,0.4482]
[1673010986939,0.2,16752.0,16751.0,0.5482]
[1673010988511,0.2,16752.0,16751.0,0.5592]
[1673010989994,0.3007,16753.0,16751.0,1.4556]
[1673010990206,0.3007,16753.0,16752.0,1.5431]
[1673010990404,0.3007,16753.0,16752.0,0.6467]
[1673010990628,0.3007,16753.0,16752.0,0.4467]
[1673010991674,0.3007,16753.0,16752.0,0.4577]
[1673010997761,0.3007,16753.0,16752.0,0.4586]
[1673011004713,0.3007,16753.0,16752.0,0.3098]
[1673011005445,0.3007,16753.0,16752.0,0.1604]
[1673011005754,1.20126222,16753.0,16752.0,0.1604]
[1673011008905,1.20126222,16753.0,16752.0,0.3084]
[1673011009119,1.20126222,16753.0,16752.0,0.4578]
[1673011011329,0.3007,16753.0,16752.0,0.4578]
[1673011020465,0.3007,16753.0,16752.0,1.3537]
[1673011024876,0.3007,16753.0,16752.0,1.3427]
[1673011025085,0.3007,16753.0,16752.0,1.3537]
[1673011025301,0.3007,16753.0,16752.0,1.3427]
[1673011025512,0.3007,16753.0,16752.0,1.3527]
[1673011027287,0.3007,16753.0,16752.0,0.4565]
[1673011027497,0.3007,16753.0,16752.0,0.3074]
[1673011029396,0.3007,16753.0,16752.0,0.158]
[1673011029613,0.3007,16753.0,16752.0,0.01]
[1673011030557,0.3007,16753.0,16752.0,0.1585]
[1673011032653,0.3007,16753.0,16752.0,0.1594]
[1673011035706,0.3007,16753.0,16752.0,0.15921122]
[1673011042737,0.30059951,16753.0,16752.0,0.15921122]
[1673011043376,0.30059951,16753.0,16752.0,0.30711122]
[1673011050527,0.30059951,16753.0,16752.0,0.15921122]
[1673011060406,0.30059951,16753.0,16752.0,0.30811122]
[1673011065027,0.30059951,16753.0,16752.0,0.15921122]
[1673011065352,1.19362905,16753.0,16752.0,0.15921122]
[1673011080581,1.19362905,16753.0,16752.0,0.30811122]
[1673011084903,1.49442954,16753.0,16752.0,0.30811122]
[1673011095616,1.49442954,16753.0,16752.0,0.30801255]
[1673011102037,0.89302954,16753.0,16752.0,0.30801255]
[1673011102247,1.49442954,16753.0,16752.0,0.30801255]
[1673011106755,1.49442954,16753.0,16752.0,0.45741255]
[1673011108865,1.19372954,16753.0,16752.0,0.45741255]
[1673011121053,0.3007,16753.0,16752.0,0.45741255]
[1673011121578,0.3007,16753.0,16752.0,1.35441255]
[1673011126098,0.3007,16754.0,16752.0,1.35441255]
[1673011126310,0.3007,16754.0,16753.0,0.3963]
[1673011127774,0.3007,16754.0,16753.0,0.2963]
[1673011128195,0.3007,16754.0,16753.0,0.3963]
[1673011128622,0.3007,16754.0,16753.0,0.4073]
[1673011132717,0.3007,16754.0,16753.0,0.3073]
[1673011135342,0.3007,16754.0,16753.0,0.1603]
[1673011135547,0.4487,16754.0,16753.0,0.011]
[1673011135757,1.34303528,16754.0,16753.0,0.011]
[1673011140396,1.19503528,16754.0,16753.0,0.1604]
[1673011145336,1.19503528,16754.0,16753.0,0.16016193]
[1673011150368,1.19503528,16754.0,16753.0,0.16006193]
[1673011151953,0.89433528,16754.0,16753.0,0.16006193]
[1673011152168,1.49573528,16754.0,16753.0,0.16006193]
[1673011153424,1.49573528,16754.0,16753.0,0.16016193]
[1673011157621,0.89433528,16754.0,16753.0,0.16016193]
[1673011157832,1.19503528,16754.0,16753.0,0.16016193]
[1673011158044,1.49573528,16754.0,16753.0,0.16016193]
[1673011160463,1.49573528,16754.0,16753.0,0.30956193]
[1673011162882,1.49573528,16754.0,16753.0,0.2988]
[1673011163090,1.49573528,16754.0,16753.0,0.3088]
[1673011163722,1.49573528,16754.0,16753.0,0.1594]
[1673011164042,1.49573528,16754.0,16753.0,0.2594]
[1673011164256,0.6014,16754.0,16753.0,0.4078]
[1673011164456,0.6014,16754.0,16753.0,0.3978]
[1673011164666,0.6014,16754.0,16753.0,0.4078]
[1673011165711,0.6014,16754.0,16753.0,0.4068]
[1673011168561,0.3007,16754.0,16753.0,0.4068]
[1673011185578,0.3007,16754.0,16753.0,0.3068]
[1673011185796,0.3007,16754.0,16753.0,0.5068]
[1673011189890,0.5007,16755.0,16753.0,0.5068]
[1673011190107,0.2,16755.0,16754.0,0.5482]
[1673011190314,0.8014,16755.0,16754.0,0.5482]
[1673011190634,0.8014,16755.0,16754.0,0.3988]
[1673011191264,0.8014,16755.0,16754.0,0.2988]
[1673011191576,0.9505,16755.0,16753.0,0.1584]
[1673011191780,0.9505,16755.0,16750.0,0.896]
[1673011191781,0.0448,16754.0,16752.0,0.1494]
[1673011191990,0.3007,16753.0,16752.0,0.1494]
[1673011192624,0.5007,16753.0,16752.0,0.1494]
[1673011192833,0.5007,16753.0,16752.0,0.1486]
[1673011200401,0.5007,16753.0,16752.0,0.2967]
[1673011207543,0.8014,16753.0,16752.0,0.2967]
[1673011210592,0.8014,16753.0,16752.0,0.1486]
[1673011217848,1.69478193,16753.0,16752.0,0.1486]
[1673011227724,1.39408193,16753.0,16752.0,0.1486]
[1673011227935,1.69478193,16753.0,16752.0,0.1486]
[1673011241279,1.39408193,16753.0,16752.0,0.1486]
[1673011241602,1.69478193,16753.0,16752.0,0.1486]
[1673011244332,1.69478193,16753.0,16752.0,0.1485]
[1673011244860,1.69478193,16753.0,16752.0,0.14829888]
[1673011250433,1.69478193,16753.0,16752.0,0.149]
[1673011260531,1.84418193,16753.0,16751.0,0.1485]
[1673011262201,0.1487,16752.0,16750.0,0.1485]
[1673011262415,0.3007,16751.0,16750.0,0.1485]
[1673011262627,1.3965775,16751.0,16750.0,0.1485]
[1673011270410,1.3965775,16751.0,16750.0,0.1494]
[1673011279879,1.3965775,16751.0,16750.0,0.1485]
[1673011286385,1.6972775,16751.0,16750.0,0.1485]
[1673011290282,1.6972775,16751.0,16750.0,0.1494]
[1673011290500,2.1454775,16751.0,16747.0,0.1485]
[1673011290811,0.8014,16748.0,16747.0,0.1485]
[1673011291436,0.8014,16748.0,16745.0,0.69022151]
[1673011291652,0.8014,16748.0,16747.0,0.149]
[1673011292916,0.5007,16748.0,16747.0,0.149]
[1673011294282,0.5007,16748.0,16747.0,0.14888325]
[1673011300367,0.5007,16748.0,16747.0,0.29828325]
[1673011310358,0.5007,16748.0,16747.0,0.14888325]
[1673011313304,0.3007,16748.0,16747.0,0.29828325]
[1673011313510,0.3007,16753.0,16748.0,0.7972]
[1673011313826,0.3007,16753.0,16752.0,0.1494]
[1673011316134,0.3007,16758.0,16752.0,2.8403]